[Event "Titled Tuesday Blitz June 15 2021"]
[White "Ibrayev, Nurlan"]
[Black "1Przemyslaw1"]
[WhiteFideId "13700650"]
[WhiteElo "2366"]
[BlackElo "2299"]
[Result "1-0"]
[Round "08"]
[TimeControl "180+1"]
[Date "2021.06.15"]
[WhiteClock "0:00:05"]
[BlackClock "0:00:01"]

1. d4 {[%clk 0:02:58]}  d5 {[%clk 0:02:59]} 2. c4 {[%clk 0:02:58]}  dxc4 {[%clk 0:02:59]} 3. Nf3 {[%clk 0:02:58]}  Nf6 {[%clk 0:02:58]} 4. e3 {[%clk 0:02:56]}  e6 {[%clk 0:02:58]} 5. Bxc4 {[%clk 0:02:56]}  c5 {[%clk 0:02:56]} 6. Qe2 {[%clk 0:02:56]}  a6 {[%clk 0:02:53]} 7. O-O {[%clk 0:02:55]}  Nc6 {[%clk 0:02:51]} 8. Rd1 {[%clk 0:02:53]}  b5 {[%clk 0:02:48]} 9. Bb3 {[%clk 0:02:46]}  c4 {[%clk 0:02:47]} 10. Bc2 {[%clk 0:02:45]}  Nb4 {[%clk 0:02:46]} 11. e4 {[%clk 0:02:39]}  Nxc2 {[%clk 0:02:36]} 12. Qxc2 {[%clk 0:02:39]}  Be7 {[%clk 0:02:28]} 13. Bg5 {[%clk 0:02:27]}  Bb7 {[%clk 0:02:10]} 14. Nc3 {[%clk 0:02:17]}  O-O {[%clk 0:01:53]} 15. d5 {[%clk 0:02:13]}  exd5 {[%clk 0:01:47]} 16. e5 {[%clk 0:02:13]}  Nd7 {[%clk 0:01:38]} 17. Bxe7 {[%clk 0:02:07]}  Qxe7 {[%clk 0:01:38]} 18. Nxd5 {[%clk 0:02:08]}  Bxd5 {[%clk 0:01:01]} 19. Rxd5 {[%clk 0:02:09]}  Rac8 {[%clk 0:00:33]} 20. Rad1 {[%clk 0:02:04]}  Nc5 {[%clk 0:00:32]} 21. Qf5 {[%clk 0:02:01]}  Qe6 {[%clk 0:00:28]} 22. Qh5 {[%clk 0:01:55]}  Nd3 {[%clk 0:00:28]} 23. Rd6 {[%clk 0:01:41]}  Qe7 {[%clk 0:00:27]} 24. b3 {[%clk 0:01:40]}  Rfe8 {[%clk 0:00:17]} 25. bxc4 {[%clk 0:01:36]}  bxc4 {[%clk 0:00:17]} 26. Rxa6 {[%clk 0:01:31]}  Nxe5 {[%clk 0:00:16]} 27. Nxe5 {[%clk 0:01:29]}  Qxe5 {[%clk 0:00:16]} 28. Qxe5 {[%clk 0:01:28]}  Rxe5 {[%clk 0:00:17]} 29. Rc6 {[%clk 0:01:25]}  Rce8 {[%clk 0:00:15]} 30. Kf1 {[%clk 0:01:24]}  Re2 {[%clk 0:00:14]} 31. a4 {[%clk 0:01:08]}  Rc2 {[%clk 0:00:12]} 32. a5 {[%clk 0:00:59]}  h6 {[%clk 0:00:12]} 33. Re1 {[%clk 0:00:53]}  Rxe1+ {[%clk 0:00:11]} 34. Kxe1 {[%clk 0:00:52]}  Ra2 {[%clk 0:00:11]} 35. a6 {[%clk 0:00:52]}  g6 {[%clk 0:00:09]} 36. g4 {[%clk 0:00:49]}  Kg7 {[%clk 0:00:08]} 37. h4 {[%clk 0:00:49]}  g5 {[%clk 0:00:08]} 38. h5 {[%clk 0:00:47]}  c3 {[%clk 0:00:06]} 39. f3 {[%clk 0:00:23]}  Kh7 {[%clk 0:00:06]} 40. Kd1 {[%clk 0:00:21]}  Kg7 {[%clk 0:00:06]} 41. Kc1 {[%clk 0:00:20]}  c2 {[%clk 0:00:05]} 42. Kd2 {[%clk 0:00:16]}  Kh7 {[%clk 0:00:05]} 43. Ke3 {[%clk 0:00:14]}  Kg7 {[%clk 0:00:05]} 44. Ke4 {[%clk 0:00:14]}  c1=Q {[%clk 0:00:03]} 45. Rxc1 {[%clk 0:00:13]}  Rxa6 {[%clk 0:00:04]} 46. Rc4 {[%clk 0:00:13]}  Rf6 {[%clk 0:00:03]} 47. Ke3 {[%clk 0:00:12]}  Re6+ {[%clk 0:00:03]} 48. Re4 {[%clk 0:00:11]}  Ra6 {[%clk 0:00:03]} 49. Re7 {[%clk 0:00:09]}  Rf6 {[%clk 0:00:02]} 50. Ke4 {[%clk 0:00:08]}  Rf4+ {[%clk 0:00:02]} 51. Ke3 {[%clk 0:00:08]}  Rf6 {[%clk 0:00:02]} 52. Ra7 {[%clk 0:00:07]}  Rf4 {[%clk 0:00:02]} 53. Ke2 {[%clk 0:00:06]}  Rb4 {[%clk 0:00:02]} 54. Ke3 {[%clk 0:00:06]}  Rf4 {[%clk 0:00:02]} 55. Ra6 {[%clk 0:00:06]}  Rb4 {[%clk 0:00:01]} 56. Rd6 {[%clk 0:00:06]}  Rf4 {[%clk 0:00:01]} 57. Rd4 {[%clk 0:00:06]}  Rf6 {[%clk 0:00:01]} 58. Rd5 {[%clk 0:00:05]}  Rf4 {[%clk 0:00:01]} 59. Re5 {[%clk 0:00:05]} 1-0


[Site "https://www.chess.com"]

[Event "Titled Tuesday Blitz June 15 2021"]
[White "Jacobson, Aaron"]
[Black "Ivanisevic, Ivan"]
[WhiteFideId "2089912"]
[BlackFideId "912417"]
[WhiteElo "2260"]
[BlackElo "2499"]
[Result "0-1"]
[Round "08"]
[TimeControl "180+1"]
[Date "2021.06.15"]
[WhiteClock "0:00:01"]
[BlackClock "0:00:51"]

1. e4 {[%clk 0:02:59]}  e5 {[%clk 0:03:00]} 2. Nf3 {[%clk 0:03:00]}  Nc6 {[%clk 0:03:00]} 3. Nc3 {[%clk 0:03:01]}  Nf6 {[%clk 0:02:59]} 4. d4 {[%clk 0:03:01]}  exd4 {[%clk 0:02:57]} 5. Nxd4 {[%clk 0:03:02]}  Bb4 {[%clk 0:02:57]} 6. Nxc6 {[%clk 0:03:01]}  bxc6 {[%clk 0:02:58]} 7. Bd3 {[%clk 0:03:02]}  O-O {[%clk 0:02:57]} 8. O-O {[%clk 0:03:03]}  d5 {[%clk 0:02:51]} 9. exd5 {[%clk 0:03:04]}  cxd5 {[%clk 0:02:52]} 10. h3 {[%clk 0:03:04]}  Rb8 {[%clk 0:02:40]} 11. Qf3 {[%clk 0:03:02]}  Re8 {[%clk 0:02:24]} 12. Bf4 {[%clk 0:02:44]}  Rb6 {[%clk 0:02:20]} 13. a3 {[%clk 0:02:17]}  Bf8 {[%clk 0:02:16]} 14. Nb5 {[%clk 0:02:09]}  Re7 {[%clk 0:01:52]} 15. Rfe1 {[%clk 0:01:56]}  c6 {[%clk 0:01:41]} 16. Rxe7 {[%clk 0:01:31]}  Qxe7 {[%clk 0:01:42]} 17. Nd6 {[%clk 0:01:20]}  Be6 {[%clk 0:01:35]} 18. b4 {[%clk 0:01:19]}  Qd7 {[%clk 0:01:33]} 19. c4 {[%clk 0:00:45]}  Bxd6 {[%clk 0:01:33]} 20. c5 {[%clk 0:00:24]}  Bxf4 {[%clk 0:01:31]} 21. cxb6 {[%clk 0:00:24]}  Be5 {[%clk 0:01:28]} 22. bxa7 {[%clk 0:00:17]}  Qxa7 {[%clk 0:01:29]} 23. Rc1 {[%clk 0:00:17]}  g6 {[%clk 0:01:21]} 24. Rxc6 {[%clk 0:00:12]}  Qxa3 {[%clk 0:01:17]} 25. b5 {[%clk 0:00:07]}  Qa1+ {[%clk 0:01:07]} 26. Bf1 {[%clk 0:00:06]}  Ne4 {[%clk 0:01:03]} 27. b6 {[%clk 0:00:04]}  Qb2 {[%clk 0:00:54]} 28. g3 {[%clk 0:00:02]}  Bd4 {[%clk 0:00:53]} 29. Rxe6 {[%clk 0:00:01]}  fxe6 {[%clk 0:00:52]} 30. Qg4 {[%clk 0:00:01]}  Qxf2+ {[%clk 0:00:51]} 0-1


[Site "https://www.chess.com"]

[Event "Titled Tuesday Blitz June 15 2021"]
[White "Jones, Gawain C B"]
[Black "Timofeev, Artyom"]
[WhiteFideId "409561"]
[BlackFideId "4140419"]
[WhiteElo "2657"]
[BlackElo "2582"]
[Result "1/2-1/2"]
[Round "08"]
[TimeControl "180+1"]
[Date "2021.06.15"]
[WhiteClock "0:00:05"]
[BlackClock "0:00:18"]

1. c4 {[%clk 0:03:00]}  Nf6 {[%clk 0:02:57]} 2. g3 {[%clk 0:03:01]}  g6 {[%clk 0:02:53]} 3. Bg2 {[%clk 0:03:01]}  Bg7 {[%clk 0:02:54]} 4. Nc3 {[%clk 0:03:01]}  c5 {[%clk 0:02:52]} 5. Nf3 {[%clk 0:03:00]}  Nc6 {[%clk 0:02:44]} 6. d4 {[%clk 0:03:00]}  cxd4 {[%clk 0:02:43]} 7. Nxd4 {[%clk 0:03:00]}  O-O {[%clk 0:02:44]} 8. O-O {[%clk 0:03:00]}  Ng4 {[%clk 0:02:44]} 9. e3 {[%clk 0:02:56]}  d6 {[%clk 0:02:44]} 10. Nxc6 {[%clk 0:02:53]}  bxc6 {[%clk 0:02:44]} 11. Bxc6 {[%clk 0:02:54]}  Rb8 {[%clk 0:02:43]} 12. Bg2 {[%clk 0:02:45]}  Ne5 {[%clk 0:02:39]} 13. Qc2 {[%clk 0:02:19]}  Nxc4 {[%clk 0:02:30]} 14. b3 {[%clk 0:02:19]}  Ne5 {[%clk 0:02:25]} 15. Bb2 {[%clk 0:02:17]}  Bb7 {[%clk 0:02:25]} 16. e4 {[%clk 0:02:11]}  Rc8 {[%clk 0:02:25]} 17. Qd2 {[%clk 0:02:05]}  h5 {[%clk 0:02:23]} 18. Nd5 {[%clk 0:01:59]}  e6 {[%clk 0:02:07]} 19. Ne3 {[%clk 0:01:57]}  h4 {[%clk 0:02:06]} 20. f4 {[%clk 0:01:52]}  Nd7 {[%clk 0:01:42]} 21. Bxg7 {[%clk 0:01:51]}  Kxg7 {[%clk 0:01:43]} 22. Qxd6 {[%clk 0:01:50]}  Nc5 {[%clk 0:01:27]} 23. Nc4 {[%clk 0:01:23]}  Ba6 {[%clk 0:01:20]} 24. Rfd1 {[%clk 0:00:58]}  Bxc4 {[%clk 0:01:17]} 25. Qxd8 {[%clk 0:00:47]}  Rfxd8 {[%clk 0:01:16]} 26. bxc4 {[%clk 0:00:47]}  hxg3 {[%clk 0:01:09]} 27. hxg3 {[%clk 0:00:47]}  Rh8 {[%clk 0:01:10]} 28. Rab1 {[%clk 0:00:45]}  Rc7 {[%clk 0:01:10]} 29. Kf2 {[%clk 0:00:43]}  Rhc8 {[%clk 0:01:08]} 30. Rbc1 {[%clk 0:00:35]}  Na4 {[%clk 0:01:04]} 31. Bf1 {[%clk 0:00:32]}  Nb6 {[%clk 0:00:53]} 32. Rd2 {[%clk 0:00:32]}  Rc5 {[%clk 0:00:51]} 33. e5 {[%clk 0:00:31]}  g5 {[%clk 0:00:47]} 34. Rd4 {[%clk 0:00:26]}  Kf8 {[%clk 0:00:47]} 35. Kf3 {[%clk 0:00:23]}  Ke7 {[%clk 0:00:46]} 36. Be2 {[%clk 0:00:19]}  Ra5 {[%clk 0:00:45]} 37. Rc2 {[%clk 0:00:17]}  Ra3+ {[%clk 0:00:44]} 38. Rd3 {[%clk 0:00:16]}  Ra5 {[%clk 0:00:44]} 39. Rdc3 {[%clk 0:00:15]}  Nd7 {[%clk 0:00:39]} 40. Rb3 {[%clk 0:00:14]}  Nc5 {[%clk 0:00:38]} 41. Rb5 {[%clk 0:00:14]}  Ra3+ {[%clk 0:00:38]} 42. Kg2 {[%clk 0:00:12]}  gxf4 {[%clk 0:00:37]} 43. gxf4 {[%clk 0:00:12]}  Rg8+ {[%clk 0:00:37]} 44. Kf1 {[%clk 0:00:11]}  Rc8 {[%clk 0:00:33]} 45. Rd2 {[%clk 0:00:11]}  Re3 {[%clk 0:00:32]} 46. Kf2 {[%clk 0:00:09]}  Ra3 {[%clk 0:00:32]} 47. Kf1 {[%clk 0:00:05]}  Rc7 {[%clk 0:00:29]} 48. Rd6 {[%clk 0:00:02]}  Ne4 {[%clk 0:00:28]} 49. Rd4 {[%clk 0:00:02]}  Ng3+ {[%clk 0:00:24]} 50. Kf2 {[%clk 0:00:03]}  Nxe2 {[%clk 0:00:22]} 51. Kxe2 {[%clk 0:00:03]}  Rxa2+ {[%clk 0:00:23]} 52. Kd3 {[%clk 0:00:04]}  Ra3+ {[%clk 0:00:23]} 53. Ke4 {[%clk 0:00:04]}  Rc3 {[%clk 0:00:22]} 54. Ra5 {[%clk 0:00:04]}  R3xc4 {[%clk 0:00:21]} 55. Rxc4 {[%clk 0:00:05]}  Rxc4+ {[%clk 0:00:21]} 56. Kd3 {[%clk 0:00:05]}  Rc7 {[%clk 0:00:21]} 57. Ke4 {[%clk 0:00:06]}  Rc4+ {[%clk 0:00:21]} 58. Kd3 {[%clk 0:00:06]}  Rxf4 {[%clk 0:00:21]} 59. Rxa7+ {[%clk 0:00:06]}  Kf8 {[%clk 0:00:21]} 60. Ke3 {[%clk 0:00:06]}  Rc4 {[%clk 0:00:20]} 61. Kf3 {[%clk 0:00:07]}  Kg7 {[%clk 0:00:21]} 62. Rb7 {[%clk 0:00:07]}  Kg6 {[%clk 0:00:21]} 63. Ra7 {[%clk 0:00:07]}  Rb4 {[%clk 0:00:20]} 64. Rc7 {[%clk 0:00:07]}  Rd4 {[%clk 0:00:19]} 65. Ra7 {[%clk 0:00:07]}  Rd1 {[%clk 0:00:19]} 66. Rb7 {[%clk 0:00:07]}  Re1 {[%clk 0:00:19]} 67. Kf4 {[%clk 0:00:07]}  Rf1+ {[%clk 0:00:20]} 68. Ke4 {[%clk 0:00:07]}  Kg5 {[%clk 0:00:20]} 69. Ra7 {[%clk 0:00:07]}  Rf4+ {[%clk 0:00:19]} 70. Ke3 {[%clk 0:00:07]}  Kg4 {[%clk 0:00:20]} 71. Rb7 {[%clk 0:00:07]}  Rf5 {[%clk 0:00:20]} 72. Ke4 {[%clk 0:00:07]}  Kg5 {[%clk 0:00:20]} 73. Ra7 {[%clk 0:00:07]}  Rf4+ {[%clk 0:00:20]} 74. Ke3 {[%clk 0:00:07]}  Rf1 {[%clk 0:00:20]} 75. Ke4 {[%clk 0:00:07]}  Kg6 {[%clk 0:00:20]} 76. Ra8 {[%clk 0:00:07]}  Re1+ {[%clk 0:00:20]} 77. Kf4 {[%clk 0:00:08]}  Rf1+ {[%clk 0:00:18]} 78. Ke4 {[%clk 0:00:08]}  Rb1 {[%clk 0:00:19]} 79. Rg8+ {[%clk 0:00:08]}  Kh7 {[%clk 0:00:19]} 80. Rg2 {[%clk 0:00:07]}  Rb4+ {[%clk 0:00:19]} 81. Ke3 {[%clk 0:00:08]}  Kh6 {[%clk 0:00:19]} 82. Kf3 {[%clk 0:00:07]}  Rd4 {[%clk 0:00:18]} 83. Ke3 {[%clk 0:00:08]}  Rb4 {[%clk 0:00:18]} 84. Kf3 {[%clk 0:00:08]}  Ra4 {[%clk 0:00:18]} 85. Ke3 {[%clk 0:00:08]}  Ra8 {[%clk 0:00:18]} 86. Kf3 {[%clk 0:00:08]}  Kh7 {[%clk 0:00:18]} 87. Kf4 {[%clk 0:00:08]}  Rg8 {[%clk 0:00:18]} 88. Rh2+ {[%clk 0:00:06]}  Kg7 {[%clk 0:00:18]} 89. Rg2+ {[%clk 0:00:07]}  Kf8 {[%clk 0:00:18]} 90. Ra2 {[%clk 0:00:07]}  Rg1 {[%clk 0:00:18]} 91. Ra8+ {[%clk 0:00:07]}  Kg7 {[%clk 0:00:18]} 92. Ra7 {[%clk 0:00:07]}  Kg6 {[%clk 0:00:18]} 93. Rb7 {[%clk 0:00:05]}  Rh1 {[%clk 0:00:18]} 94. Ra7 {[%clk 0:00:05]}  Rh4+ {[%clk 0:00:18]} 95. Ke3 {[%clk 0:00:05]}  Rh7 {[%clk 0:00:18]} 96. Kf4 {[%clk 0:00:05]}  Rh5 {[%clk 0:00:18]} 97. Rb7 {[%clk 0:00:05]}  Rh6 {[%clk 0:00:17]} 98. Ra7 {[%clk 0:00:04]}  Rh4+ {[%clk 0:00:17]} 99. Ke3 {[%clk 0:00:05]}  Rb4 {[%clk 0:00:18]} 100. Kf3 {[%clk 0:00:05]}  Rb5 {[%clk 0:00:18]} 101. Kf4 {[%clk 0:00:05]}  Rc5 {[%clk 0:00:18]} 102. Rb7 {[%clk 0:00:05]}  Rc1 {[%clk 0:00:18]} 103. Ra7 {[%clk 0:00:05]}  Rf1+ {[%clk 0:00:18]} 104. Ke4 {[%clk 0:00:05]}  Kg5 {[%clk 0:00:19]} 105. Rb7 {[%clk 0:00:05]}  Rf2 {[%clk 0:00:17]} 106. Ra7 {[%clk 0:00:05]}  Rf4+ {[%clk 0:00:18]} 1/2-1/2


[Site "https://www.chess.com"]

[Event "Titled Tuesday Blitz June 15 2021"]
[White "Karttunen, Mika"]
[Black "Bayo Milagro, Alvaro"]
[WhiteFideId "502081"]
[BlackFideId "22275240"]
[WhiteElo "2343"]
[BlackElo "2270"]
[Result "1-0"]
[Round "08"]
[TimeControl "180+1"]
[Date "2021.06.15"]
[WhiteClock "0:00:11"]
[BlackClock "0:00:01"]

1. e4 {[%clk 0:03:00]}  c5 {[%clk 0:02:05]} 2. Nf3 {[%clk 0:02:58]}  g6 {[%clk 0:02:05]} 3. d4 {[%clk 0:02:56]}  cxd4 {[%clk 0:02:06]} 4. Nxd4 {[%clk 0:02:55]}  Bg7 {[%clk 0:02:06]} 5. c4 {[%clk 0:02:55]}  Nc6 {[%clk 0:02:06]} 6. Be3 {[%clk 0:02:54]}  Nf6 {[%clk 0:02:05]} 7. Nc3 {[%clk 0:02:53]}  d6 {[%clk 0:02:05]} 8. Be2 {[%clk 0:02:42]}  O-O {[%clk 0:02:05]} 9. Nc2 {[%clk 0:02:39]}  Be6 {[%clk 0:02:00]} 10. O-O {[%clk 0:02:37]}  Ne5 {[%clk 0:02:00]} 11. Na3 {[%clk 0:02:34]}  Neg4 {[%clk 0:01:58]} 12. Bd4 {[%clk 0:02:30]}  Rc8 {[%clk 0:01:54]} 13. f4 {[%clk 0:02:17]}  Nh6 {[%clk 0:01:36]} 14. h3 {[%clk 0:02:10]}  Ne8 {[%clk 0:01:30]} 15. g4 {[%clk 0:01:54]}  f5 {[%clk 0:01:26]} 16. exf5 {[%clk 0:01:43]}  gxf5 {[%clk 0:01:24]} 17. g5 {[%clk 0:01:43]}  Nf7 {[%clk 0:01:24]} 18. Re1 {[%clk 0:01:10]}  Qa5 {[%clk 0:00:55]} 19. Bf1 {[%clk 0:01:01]}  Bxd4+ {[%clk 0:00:52]} 20. Qxd4 {[%clk 0:01:00]}  Ng7 {[%clk 0:00:52]} 21. Re3 {[%clk 0:00:52]}  Qc5 {[%clk 0:00:27]} 22. Qxc5 {[%clk 0:00:43]}  Rxc5 {[%clk 0:00:28]} 23. Rae1 {[%clk 0:00:42]}  Nd8 {[%clk 0:00:28]} 24. b3 {[%clk 0:00:38]}  Kf7 {[%clk 0:00:28]} 25. Nab5 {[%clk 0:00:33]}  Nc6 {[%clk 0:00:20]} 26. Bg2 {[%clk 0:00:31]}  a6 {[%clk 0:00:20]} 27. Nc7 {[%clk 0:00:30]}  Nd4 {[%clk 0:00:18]} 28. Nxe6 {[%clk 0:00:27]}  Ngxe6 {[%clk 0:00:18]} 29. Nd5 {[%clk 0:00:22]}  Re8 {[%clk 0:00:10]} 30. Bf3 {[%clk 0:00:15]}  Nxf3+ {[%clk 0:00:10]} 31. Rxf3 {[%clk 0:00:16]}  Nd4 {[%clk 0:00:10]} 32. Rd3 {[%clk 0:00:15]}  Nc6 {[%clk 0:00:09]} 33. Rde3 {[%clk 0:00:14]}  b5 {[%clk 0:00:09]} 34. Nf6 {[%clk 0:00:14]}  bxc4 {[%clk 0:00:08]} 35. Nxe8 {[%clk 0:00:14]}  Kxe8 {[%clk 0:00:08]} 36. bxc4 {[%clk 0:00:15]}  Rxc4 {[%clk 0:00:08]} 37. Rf3 {[%clk 0:00:15]}  Nd4 {[%clk 0:00:08]} 38. Rf2 {[%clk 0:00:15]}  Rc3 {[%clk 0:00:07]} 39. Kg2 {[%clk 0:00:15]}  Nc6 {[%clk 0:00:07]} 40. h4 {[%clk 0:00:15]}  Rc4 {[%clk 0:00:07]} 41. h5 {[%clk 0:00:15]}  e5 {[%clk 0:00:07]} 42. g6 {[%clk 0:00:15]}  hxg6 {[%clk 0:00:06]} 43. h6 {[%clk 0:00:16]}  Kf8 {[%clk 0:00:06]} 44. Rd1 {[%clk 0:00:14]}  Nd4 {[%clk 0:00:05]} 45. Rb2 {[%clk 0:00:13]}  Kg8 {[%clk 0:00:05]} 46. Rb7 {[%clk 0:00:12]}  Rc2+ {[%clk 0:00:05]} 47. Kg3 {[%clk 0:00:11]}  Ne2+ {[%clk 0:00:05]} 48. Kf3 {[%clk 0:00:11]}  Nd4+ {[%clk 0:00:05]} 49. Ke3 {[%clk 0:00:10]}  Re2+ {[%clk 0:00:06]} 50. Kd3 {[%clk 0:00:11]}  Rh2 {[%clk 0:00:05]} 51. Rc1 {[%clk 0:00:11]}  Rh3+ {[%clk 0:00:03]} 52. Kc4 {[%clk 0:00:11]}  Rxh6 {[%clk 0:00:01]} 53. Kd5 {[%clk 0:00:11]} 1-0


[Site "https://www.chess.com"]

[Event "Titled Tuesday Blitz June 15 2021"]
[White "Khusnutdinov, Rustam"]
[Black "Ponkratov, Pavel"]
[WhiteFideId "13701703"]
[BlackFideId "4157800"]
[WhiteElo "2571"]
[BlackElo "2636"]
[Result "1-0"]
[Round "08"]
[TimeControl "180+1"]
[Date "2021.06.15"]
[WhiteClock "0:00:06"]
[BlackClock "0:00:08"]

1. d4 {[%clk 0:03:00]}  c5 {[%clk 0:03:00]} 2. d5 {[%clk 0:02:58]}  e5 {[%clk 0:03:00]} 3. e4 {[%clk 0:02:57]}  h5 {[%clk 0:03:00]} 4. Nc3 {[%clk 0:02:51]}  a6 {[%clk 0:03:01]} 5. f4 {[%clk 0:02:49]}  d6 {[%clk 0:02:53]} 6. Nf3 {[%clk 0:02:36]}  Bg4 {[%clk 0:02:53]} 7. h3 {[%clk 0:02:33]}  Bxf3 {[%clk 0:02:53]} 8. Qxf3 {[%clk 0:02:34]}  b5 {[%clk 0:02:53]} 9. fxe5 {[%clk 0:02:26]}  Nd7 {[%clk 0:02:48]} 10. e6 {[%clk 0:02:16]}  fxe6 {[%clk 0:02:45]} 11. dxe6 {[%clk 0:02:17]}  Ne5 {[%clk 0:02:45]} 12. Qf2 {[%clk 0:02:04]}  Nf6 {[%clk 0:02:33]} 13. Bg5 {[%clk 0:02:03]}  Be7 {[%clk 0:02:33]} 14. Bxf6 {[%clk 0:01:51]}  Bxf6 {[%clk 0:02:32]} 15. O-O-O {[%clk 0:01:52]}  O-O {[%clk 0:02:31]} 16. Kb1 {[%clk 0:01:48]}  Nc6 {[%clk 0:02:17]} 17. Qe1 {[%clk 0:01:43]}  Bxc3 {[%clk 0:02:12]} 18. Qxc3 {[%clk 0:01:42]}  Qe7 {[%clk 0:02:13]} 19. Be2 {[%clk 0:01:37]}  Qxe6 {[%clk 0:02:01]} 20. Bxh5 {[%clk 0:01:36]}  Rf6 {[%clk 0:02:01]} 21. Rhe1 {[%clk 0:01:29]}  Qe5 {[%clk 0:01:58]} 22. Qxe5 {[%clk 0:01:22]}  Nxe5 {[%clk 0:01:59]} 23. Rf1 {[%clk 0:01:22]}  Raf8 {[%clk 0:01:58]} 24. Be2 {[%clk 0:01:22]}  Rf2 {[%clk 0:01:57]} 25. Bf3 {[%clk 0:01:16]}  Rxf1 {[%clk 0:01:52]} 26. Rxf1 {[%clk 0:01:17]}  Rf6 {[%clk 0:01:52]} 27. Kc1 {[%clk 0:01:16]}  Rf4 {[%clk 0:01:43]} 28. b3 {[%clk 0:01:09]}  Rh4 {[%clk 0:01:38]} 29. Rh1 {[%clk 0:00:51]}  Kf7 {[%clk 0:01:37]} 30. Kd2 {[%clk 0:00:51]}  Ke7 {[%clk 0:01:37]} 31. Ke3 {[%clk 0:00:51]}  a5 {[%clk 0:01:31]} 32. Be2 {[%clk 0:00:50]}  b4 {[%clk 0:01:30]} 33. g3 {[%clk 0:00:50]}  Rh8 {[%clk 0:01:30]} 34. h4 {[%clk 0:00:51]}  Ra8 {[%clk 0:01:28]} 35. h5 {[%clk 0:00:47]}  a4 {[%clk 0:01:23]} 36. h6 {[%clk 0:00:47]}  gxh6 {[%clk 0:01:24]} 37. Rxh6 {[%clk 0:00:48]}  a3 {[%clk 0:01:23]} 38. Rh7+ {[%clk 0:00:44]}  Kf6 {[%clk 0:01:23]} 39. Rh6+ {[%clk 0:00:44]}  Ke7 {[%clk 0:01:23]} 40. Rh7+ {[%clk 0:00:43]}  Ke6 {[%clk 0:01:23]} 41. Rh6+ {[%clk 0:00:43]}  Kd7 {[%clk 0:01:24]} 42. Rh7+ {[%clk 0:00:38]}  Kc6 {[%clk 0:01:22]} 43. g4 {[%clk 0:00:35]}  Rg8 {[%clk 0:01:22]} 44. Kf4 {[%clk 0:00:36]}  Rf8+ {[%clk 0:01:22]} 45. Ke3 {[%clk 0:00:36]}  Nf7 {[%clk 0:01:09]} 46. Rh5 {[%clk 0:00:35]}  Ne5 {[%clk 0:01:03]} 47. Rh1 {[%clk 0:00:34]}  Kd7 {[%clk 0:01:02]} 48. g5 {[%clk 0:00:34]}  Ke7 {[%clk 0:00:58]} 49. Rh7+ {[%clk 0:00:32]}  Rf7 {[%clk 0:00:55]} 50. Rh6 {[%clk 0:00:31]}  Rg7 {[%clk 0:00:53]} 51. Kf4 {[%clk 0:00:30]}  Nf7 {[%clk 0:00:48]} 52. Rh5 {[%clk 0:00:28]}  Nd8 {[%clk 0:00:41]} 53. Bc4 {[%clk 0:00:28]}  Nc6 {[%clk 0:00:41]} 54. Rh2 {[%clk 0:00:23]}  Ne5 {[%clk 0:00:39]} 55. Rg2 {[%clk 0:00:20]}  Rh7 {[%clk 0:00:34]} 56. g6 {[%clk 0:00:20]}  Rg7 {[%clk 0:00:33]} 57. Kf5 {[%clk 0:00:19]}  Nc6 {[%clk 0:00:33]} 58. Rh2 {[%clk 0:00:19]}  Nd4+ {[%clk 0:00:28]} 59. Kf4 {[%clk 0:00:12]}  Rxg6 {[%clk 0:00:28]} 60. Rh7+ {[%clk 0:00:13]}  Kd8 {[%clk 0:00:25]} 61. Rh8+ {[%clk 0:00:13]}  Kc7 {[%clk 0:00:25]} 62. Rh7+ {[%clk 0:00:14]}  Kb6 {[%clk 0:00:25]} 63. e5 {[%clk 0:00:09]}  dxe5+ {[%clk 0:00:20]} 64. Kxe5 {[%clk 0:00:10]}  Nxc2 {[%clk 0:00:21]} 65. Bd3 {[%clk 0:00:10]}  Rg2 {[%clk 0:00:18]} 66. Rh6+ {[%clk 0:00:10]}  Kc7 {[%clk 0:00:19]} 67. Rh7+ {[%clk 0:00:10]}  Kd8 {[%clk 0:00:19]} 68. Kd6 {[%clk 0:00:10]}  Ke8 {[%clk 0:00:16]} 69. Bc4 {[%clk 0:00:09]}  Rd2+ {[%clk 0:00:15]} 70. Bd5 {[%clk 0:00:08]}  Kf8 {[%clk 0:00:14]} 71. Rf7+ {[%clk 0:00:08]}  Ke8 {[%clk 0:00:12]} 72. Rg7 {[%clk 0:00:08]}  Rf2 {[%clk 0:00:11]} 73. Rg8+ {[%clk 0:00:05]}  Rf8 {[%clk 0:00:11]} 74. Rg7 {[%clk 0:00:06]}  Rf6+ {[%clk 0:00:11]} 75. Be6 {[%clk 0:00:06]}  Nd4 {[%clk 0:00:10]} 76. Rg8+ {[%clk 0:00:06]}  Rf8 {[%clk 0:00:10]} 77. Rxf8+ {[%clk 0:00:05]}  Kxf8 {[%clk 0:00:10]} 78. Bc4 {[%clk 0:00:06]}  Nf5+ {[%clk 0:00:08]} 79. Kxc5 {[%clk 0:00:07]}  Ke7 {[%clk 0:00:09]} 80. Kxb4 {[%clk 0:00:07]}  Kd6 {[%clk 0:00:10]} 81. Kxa3 {[%clk 0:00:07]}  Kc5 {[%clk 0:00:11]} 82. Kb2 {[%clk 0:00:08]}  Nd6 {[%clk 0:00:10]} 83. Kc3 {[%clk 0:00:08]}  Ne4+ {[%clk 0:00:10]} 84. Kd3 {[%clk 0:00:09]}  Nd6 {[%clk 0:00:09]} 85. a3 {[%clk 0:00:09]}  Kb6 {[%clk 0:00:10]} 86. b4 {[%clk 0:00:09]}  Nf7 {[%clk 0:00:10]} 87. a4 {[%clk 0:00:10]}  Ne5+ {[%clk 0:00:10]} 88. Kc3 {[%clk 0:00:11]}  Nc6 {[%clk 0:00:11]} 89. Bd5 {[%clk 0:00:10]}  Ne7 {[%clk 0:00:11]} 90. Be4 {[%clk 0:00:11]}  Nc8 {[%clk 0:00:11]} 91. a5+ {[%clk 0:00:10]}  Kb5 {[%clk 0:00:11]} 92. Bd3+ {[%clk 0:00:10]}  Ka4 {[%clk 0:00:11]} 93. a6 {[%clk 0:00:08]}  Nb6 {[%clk 0:00:10]} 94. a7 {[%clk 0:00:09]}  Nd5+ {[%clk 0:00:09]} 95. Kd4 {[%clk 0:00:08]}  Nc7 {[%clk 0:00:09]} 96. Kc5 {[%clk 0:00:06]}  Ne6+ {[%clk 0:00:08]} 97. Kb6 {[%clk 0:00:06]} 1-0


[Site "https://www.chess.com"]